bitfinex/quotes_BTCUSD_20250131
["timestamp","ask_amount","ask_price","bid_price","bid_amount"]
[1738357182808,0.0034562,101700.0,101690.0,0.56927216]
[1738357183541,0.0034562,101700.0,101690.0,0.58927216]
[1738357183743,0.0034562,101700.0,101690.0,0.71924548]
[1738357183944,0.0068562,101700.0,101690.0,0.58927216]
[1738357184504,0.000478,101710.0,101700.0,0.360492]
[1738357184711,0.000478,101710.0,101700.0,0.71050848]
[1738357184850,0.000478,101710.0,101700.0,0.74112981]
[1738357185049,0.000478,101710.0,101700.0,0.61115649]
[1738357185595,0.000478,101710.0,101700.0,0.61113407]
[1738357185796,0.000478,101710.0,101700.0,0.58053516]
[1738357186044,0.000478,101710.0,101700.0,0.71970371]
[1738357186739,0.000478,101710.0,101700.0,0.75028804]
[1738357187216,0.000478,101710.0,101700.0,0.62031472]
[1738357187455,0.000478,101710.0,101700.0,0.57073039]
[1738357187694,0.000478,101710.0,101700.0,0.56153516]
[1738357187906,0.001478,101710.0,101700.0,0.59353516]
[1738357188737,0.001478,101710.0,101700.0,0.61359167]
[1738357189491,0.001478,101710.0,101700.0,0.74356499]
[1738357190110,0.001478,101710.0,101700.0,0.59359167]
[1738357190324,0.001478,101710.0,101700.0,0.57059167]
[1738357190518,0.001478,101710.0,101700.0,0.59059167]
[1738357190994,0.001478,101710.0,101700.0,0.61359167]
[1738357191354,0.97422442,101720.0,101710.0,0.369626]
[1738357191552,0.97427219,101720.0,101710.0,0.43772116]
[1738357192842,4.777e-05,101720.0,101710.0,0.51812116]
[1738357193471,0.00104777,101720.0,101710.0,0.52712116]
[1738357193893,0.00104777,101720.0,101710.0,0.53112116]
[1738357194858,0.00130397,101720.0,101710.0,0.53112116]
[1738357195080,0.00130397,101720.0,101710.0,0.68109448]
[1738357195300,0.0002562,101750.0,101740.0,0.02]
[1738357195507,0.00025642,101760.0,101750.0,0.33742]
[1738357195728,0.00030449,101760.0,101750.0,0.41466316]
[1738357195939,0.00030449,101760.0,101750.0,0.26724316]
[1738357196147,0.00030449,101760.0,101750.0,0.41466316]
[1738357196359,0.00030449,101760.0,101750.0,0.43766316]
[1738357196569,0.00430449,101760.0,101750.0,0.43766316]
[1738357196779,0.14770949,101760.0,101750.0,0.29024316]
[1738357196998,1.21513348,101760.0,101750.0,0.02]
[1738357197230,1.21613348,101760.0,101750.0,0.029]
[1738357197431,1.21613348,101760.0,101750.0,0.009]
[1738357197631,0.45175757,101740.0,101710.0,0.3536575]
[1738357197858,0.40262557,101740.0,101720.0,0.24724316]
[1738357198067,0.40262557,101740.0,101720.0,0.09724316]
[1738357198068,0.147449,101730.0,101720.0,0.09724316]
[1738357198263,0.147449,101730.0,101720.0,0.02]
[1738357198489,0.59921857,101740.0,101720.0,0.147462]
[1738357198693,0.40262357,101740.0,101730.0,0.02]
[1738357199106,0.147449,101730.0,101720.0,0.15]
[1738357199328,0.196623,101720.0,101700.0,0.344248]
[1738357199534,0.344094,101720.0,101710.0,0.11724316]
[1738357199749,0.344072,101730.0,101720.0,0.02]
[1738357199951,0.344072,101730.0,101720.0,0.11724316]
[1738357200155,0.344072,101730.0,101720.0,0.11684316]
[1738357200359,0.344091,101720.0,101710.0,0.0196]
[1738357200594,0.344091,101720.0,101710.0,0.11698331]
[1738357201103,0.35409057,101720.0,101710.0,0.01974015]
[1738357201330,0.43099057,101720.0,101710.0,0.01974015]
[1738357201535,0.344091,101720.0,101710.0,0.11698331]
[1738357201744,1.31829642,101730.0,101720.0,0.0196]
[1738357201955,1.12168542,101730.0,101720.0,0.14082616]
[1738357202367,0.147461,101730.0,101720.0,0.28984316]
[1738357202589,0.15746057,101730.0,101720.0,0.0196]
[1738357202990,0.147461,101730.0,101720.0,0.11684316]
[1738357203248,1.31825742,101740.0,101730.0,0.0196]
[1738357203416,0.40313257,101750.0,101740.0,0.0196]
[1738357203417,1.32820799,101750.0,101740.0,0.0196]
[1738357204001,0.153449,101730.0,101720.0,0.18122824]
[1738357204142,0.98022442,101730.0,101720.0,0.3040084]
[1738357204519,0.98022442,101730.0,101720.0,0.3030084]
[1738357204520,1.12167342,101730.0,101720.0,0.3030084]
[1738357204723,1.12167342,101730.0,101720.0,0.2834084]
[1738357204955,1.13167299,101730.0,101720.0,0.03276524]
[1738357205192,1.13167299,101730.0,101720.0,0.0196]
[1738357205804,1.32897299,101730.0,101720.0,0.0196]
[1738357206227,1.32897299,101730.0,101720.0,0.0198562]
[1738357206443,1.32897299,101730.0,101720.0,0.0052562]
[1738357206622,1.32897299,101730.0,101720.0,0.0268562]
[1738357207250,1.32897299,101730.0,101720.0,0.0072562]
[1738357207433,1.36477342,101730.0,101720.0,0.0072562]
[1738357207662,1.36477342,101730.0,101720.0,0.0198562]
[1738357207870,1.36477342,101730.0,101720.0,0.0218562]
[1738357208071,1.36477342,101730.0,101720.0,0.0268562]
[1738357208273,1.36477342,101730.0,101720.0,0.0218562]
[1738357208472,1.37477299,101730.0,101720.0,0.0198562]
[1738357208644,1.37477299,101730.0,101720.0,0.0218562]
[1738357209018,1.36477342,101730.0,101720.0,0.0218562]
[1738357209215,1.37477299,101730.0,101720.0,0.0218562]
[1738357209427,1.32897299,101730.0,101720.0,0.0218562]
[1738357209833,1.32897299,101730.0,101720.0,0.0228562]
[1738357210055,1.32897299,101730.0,101720.0,0.01759093]
[1738357210297,1.12237342,101730.0,101720.0,0.13783409]
[1738357210776,1.13237299,101730.0,101720.0,0.01759093]
[1738357211014,0.15746257,101720.0,101710.0,0.01773108]
[1738357211266,0.20336257,101720.0,101710.0,0.01773108]
[1738357211479,0.193363,101720.0,101710.0,0.01773108]
[1738357211678,0.193363,101720.0,101710.0,0.00014015]
[1738357212163,0.193363,101720.0,101710.0,0.00514015]
[1738357212638,0.193363,101720.0,101710.0,0.02273108]
[1738357212848,0.193363,101720.0,101710.0,0.00514015]
[1738357213253,0.193363,101720.0,101710.0,0.00714015]
[1738357213711,0.29060616,101720.0,101710.0,0.00714015]
[1738357213965,0.37330616,101720.0,101710.0,0.00714015]
[1738357214814,0.37330616,101720.0,101710.0,0.00514015]
[1738357215024,0.37330616,101720.0,101710.0,0.00014015]
[1738357215246,0.38130616,101720.0,101710.0,0.00114015]
[1738357215450,0.37330616,101720.0,101710.0,0.00014015]
[1738357215862,0.38130616,101720.0,101710.0,0.00114015]
[1738357216065,0.56822417,101720.0,101710.0,0.00214015]
[1738357216688,0.56822417,101720.0,101710.0,0.00114015]
[1738357216895,0.58238417,101720.0,101710.0,0.00214015]
[1738357217320,0.59177479,101720.0,101710.0,0.00214015]
[1738357217986,0.55485678,101720.0,101710.0,0.00214015]
[1738357218689,0.55485678,101720.0,101710.0,0.00239635]
[1738357222195,0.54769678,101720.0,101710.0,0.00239635]
[1738357222470,0.55485678,101720.0,101710.0,0.00239635]
[1738357223114,0.54769678,101720.0,101710.0,0.00239635]
[1738357223229,0.55485678,101720.0,101710.0,0.00239635]
[1738357224962,0.56642183,101720.0,101710.0,0.00239635]
[1738357225167,0.147478,101710.0,101700.0,0.000122]
[1738357225377,0.147478,101710.0,101700.0,0.00016977]
[1738357225378,1.34574558,101710.0,101700.0,0.00016977]
[1738357226334,1.34874558,101710.0,101700.0,0.00016977]
[1738357226571,1.17810242,101710.0,101700.0,0.00116977]
[1738357227248,1.32810242,101710.0,101700.0,0.00116977]
[1738357228391,1.42534558,101710.0,101700.0,0.00116977]
[1738357230516,1.51383391,101710.0,101700.0,0.00116977]
[1738357231165,1.50244558,101710.0,101700.0,0.00116977]
[1738357231933,1.13270242,101710.0,101700.0,0.00116977]
[1738357232388,1.14270199,101710.0,101700.0,0.00116977]
[1738357232638,0.16847757,101710.0,101700.0,0.0187607]
[1738357233609,0.158478,101710.0,101700.0,0.00116977]
[1738357233822,0.16047757,101710.0,101700.0,0.0177607]
[1738357234263,0.16047757,101710.0,101700.0,0.0197607]
[1738357235066,0.15747757,101710.0,101700.0,0.0197607]
[1738357235590,0.15747757,101710.0,101700.0,0.1435607]
[1738357235805,0.16347757,101710.0,101700.0,0.1111273]
[1738357236020,0.16347757,101710.0,101700.0,0.0966607]
[1738357236343,0.16417757,101710.0,101700.0,0.0996607]
[1738357236967,0.0067,101710.0,101700.0,0.21990386]
[1738357237172,0.0067,101710.0,101700.0,0.36739586]
[1738357237598,1.12840242,101710.0,101700.0,0.21990386]
[1738357238861,1.12840242,101710.0,101700.0,0.00316977]
[1738357239110,1.12840242,101710.0,101700.0,0.0207607]
[1738357239497,1.13840199,101710.0,101700.0,0.0207607]
[1738357239698,1.12840242,101710.0,101700.0,0.19480386]
[1738357240071,1.12440242,101710.0,101700.0,0.19280386]
[1738357240490,1.13040242,101710.0,101700.0,0.19280386]
[1738357240695,1.12840242,101710.0,101700.0,0.19280386]
[1738357240899,1.12840242,101710.0,101700.0,0.19380386]
[1738357241463,1.12840242,101710.0,101700.0,0.19393886]
[1738357241687,1.12252442,101710.0,101700.0,0.17634793]
[1738357241894,1.12252442,101710.0,101700.0,0.19593886]
[1738357242769,0.1483,101710.0,101700.0,0.19593886]
[1738357243826,0.15829957,101710.0,101700.0,0.0208957]
[1738357245504,0.1483,101710.0,101700.0,0.11813886]
[1738357245739,0.000822,101710.0,101700.0,0.14212202]
[1738357245938,0.000822,101710.0,101700.0,0.56661402]
[1738357246086,0.000822,101710.0,101700.0,0.56563086]
[1738357246476,0.1483,101710.0,101700.0,0.26813886]
[1738357246696,0.15829957,101710.0,101700.0,0.11813886]
[1738357247777,0.1483,101710.0,101700.0,0.00330477]
[1738357248003,0.2748,101710.0,101700.0,0.00330477]
[1738357248431,0.52204316,101710.0,101700.0,0.00330477]
[1738357249313,0.4248,101710.0,101700.0,0.00330477]
[1738357250034,0.2983,101710.0,101700.0,0.00330477]
[1738357250253,0.1483,101710.0,101700.0,0.00330477]
[1738357251029,0.1483,101710.0,101700.0,0.0208957]
[1738357251231,0.15829957,101710.0,101700.0,0.0208957]
[1738357251488,0.15829957,101710.0,101700.0,0.12846896]
[1738357252486,0.15829957,101710.0,101700.0,0.0312258]
[1738357254566,0.15829957,101710.0,101700.0,0.01363487]
[1738357254749,0.15829957,101710.0,101700.0,0.0312258]
[1738357255335,0.1483,101710.0,101700.0,0.01363487]
[1738357255559,0.1483,101710.0,101700.0,0.0208957]
[1738357257260,0.1483,101710.0,101700.0,0.00330477]
[1738357257472,0.2254,101710.0,101700.0,0.00330477]
[1738357259400,0.1483,101710.0,101700.0,0.00330477]
[1738357259936,0.15829957,101710.0,101700.0,0.00330477]
[1738357260143,0.15829957,101710.0,101700.0,0.0208957]
[1738357260673,0.1483,101710.0,101700.0,0.0208957]
[1738357261530,0.000822,101710.0,101700.0,0.41661405]
[1738357261731,0.000822,101710.0,101700.0,0.69860418]
[1738357261939,0.000822,101710.0,101700.0,0.56863086]
[1738357262161,0.000822,101710.0,101700.0,0.69860418]
[1738357262310,0.000822,101710.0,101700.0,0.56863086]
[1738357262474,0.000822,101710.0,101700.0,0.56763086]
[1738357262684,0.000822,101710.0,101700.0,0.55003993]
[1738357262878,0.000822,101710.0,101700.0,0.55303993]
[1738357263951,0.000822,101710.0,101700.0,0.56289896]
[1738357264131,0.000822,101710.0,101700.0,0.58787305]
[1738357264323,0.000822,101710.0,101700.0,0.55989896]
[1738357264525,0.000822,101710.0,101700.0,0.57748989]
[1738357265739,0.000822,101710.0,101700.0,0.55989896]
[1738357265949,0.000822,101710.0,101700.0,0.48949896]
[1738357266368,0.000822,101710.0,101700.0,0.50508989]
[1738357266577,0.15829957,101710.0,101700.0,0.02775473]
[1738357266780,0.15929957,101710.0,101700.0,0.03475473]
[1738357267096,0.15929957,101710.0,101700.0,0.03775473]
[1738357267499,0.15829957,101710.0,101700.0,0.03075473]
[1738357267705,0.15829957,101710.0,101700.0,0.03475473]
[1738357268360,0.15829957,101710.0,101700.0,0.03175473]
[1738357268615,0.15829957,101710.0,101700.0,0.00630477]
[1738357268812,0.1483,101710.0,101700.0,0.0238957]
[1738357269502,0.15829957,101710.0,101700.0,0.0238957]
[1738357270918,0.000822,101710.0,101700.0,0.29163086]
[1738357272716,0.15829957,101710.0,101700.0,0.12113886]
[1738357273514,0.15829957,101710.0,101700.0,0.00630477]
[1738357273718,0.15829957,101710.0,101700.0,0.0238957]
[1738357274971,0.1483,101710.0,101700.0,0.0238957]
[1738357275383,0.15829957,101710.0,101700.0,0.0238957]
[1738357276531,0.000822,101710.0,101700.0,0.26961408]
[1738357276728,0.000822,101710.0,101700.0,0.29163086]
[1738357277040,0.000822,101710.0,101700.0,0.44163086]
[1738357277261,0.000822,101710.0,101700.0,0.56723086]
[1738357277707,0.000822,101710.0,101700.0,0.59788656]
[1738357278816,0.000822,101710.0,101700.0,0.59588656]
[1738357279043,0.000822,101710.0,101700.0,0.59888656]
[1738357279218,0.000822,101710.0,101700.0,0.56423086]
[1738357279654,0.000822,101710.0,101700.0,0.59487186]
[1738357279881,0.001822,101710.0,101700.0,0.60187186]
[1738357280435,0.001822,101710.0,101700.0,0.59053472]
[1738357281387,0.001822,101710.0,101700.0,0.55363993]
[1738357281626,0.001822,101710.0,101700.0,0.44563086]
[1738357282097,0.001822,101710.0,101700.0,0.45553627]
[1738357283030,0.001822,101710.0,101700.0,0.43794534]
[1738357283494,0.001822,101710.0,101700.0,0.45553627]
[1738357283972,0.001822,101710.0,101700.0,0.43794534]
[1738357284210,0.001822,101710.0,101700.0,0.45553627]
[1738357285997,0.001822,101710.0,101700.0,0.53543627]
[1738357286247,0.001822,101710.0,101700.0,0.58453627]
[1738357291075,0.001687,101710.0,101700.0,0.58440127]
[1738357292812,0.001687,101710.0,101700.0,0.61504867]
[1738357293238,0.001687,101710.0,101700.0,0.58440127]
[1738357293490,0.001687,101710.0,101700.0,0.53530127]
[1738357294227,0.001687,101710.0,101700.0,0.45540127]
[1738357294902,0.001687,101710.0,101700.0,0.48607184]
[1738357295219,0.001687,101710.0,101700.0,0.45540127]
[1738357295426,0.001687,101710.0,101700.0,0.48607133]
[1738357296356,0.001687,101710.0,101700.0,0.45540127]
[1738357296901,0.001687,101710.0,101700.0,0.48607357]
[1738357298177,0.001687,101710.0,101700.0,0.61611156]
[1738357298432,0.001687,101710.0,101700.0,0.89244955]
[1738357298686,0.046922,101750.0,101740.0,0.31502493]
[1738357298687,0.000122,101750.0,101740.0,0.31502493]
[1738357298949,0.000122,101750.0,101740.0,0.43526809]
[1738357299219,0.000122,101750.0,101740.0,0.59596332]
[1738357299716,0.000122,101750.0,101740.0,0.62532626]
[1738357299919,0.00017007,101750.0,101740.0,0.6532606]
[1738357300124,0.00017007,101750.0,101740.0,0.62532626]
[1738357300335,0.00017007,101750.0,101740.0,0.6532606]
[1738357300545,0.00017007,101750.0,101740.0,0.46592533]
[1738357300722,0.00017007,101750.0,101740.0,0.43826809]
[1738357301145,0.00017007,101750.0,101740.0,0.39767716]
[1738357301565,0.00017007,101750.0,101740.0,0.43826809]
[1738357302236,0.00017007,101750.0,101740.0,0.42067716]
[1738357302449,0.00017007,101750.0,101740.0,0.43826809]
[1738357302633,0.00017007,101750.0,101740.0,0.42067716]
[1738357302838,0.15758964,101750.0,101740.0,0.17059093]
[1738357303099,0.00017007,101750.0,101740.0,0.17059093]
[1738357303314,0.15758964,101750.0,101740.0,0.17059093]
[1738357303526,0.15758964,101750.0,101740.0,0.26783409]
[1738357303727,0.15758964,101750.0,101740.0,0.17059093]
[1738357304139,0.15758964,101750.0,101740.0,0.31802493]
[1738357304349,0.15758964,101750.0,101740.0,0.17059093]
[1738357304563,0.15758964,101750.0,101740.0,0.153]
[1738357304770,0.15758964,101750.0,101740.0,0.17059093]
[1738357304981,0.15758964,101750.0,101740.0,0.153]
[1738357305229,0.15758964,101750.0,101740.0,0.17059093]
[1738357305661,1.24621449,101750.0,101740.0,0.003]
[1738357306126,1.24621449,101750.0,101740.0,0.02059093]
[1738357306593,1.24621449,101750.0,101740.0,0.02359093]
[1738357306792,1.24621449,101750.0,101740.0,0.003]
[1738357306995,1.24621449,101750.0,101740.0,0.02159093]
[1738357307174,1.2471746,101750.0,101740.0,0.02159093]
[1738357308527,1.24621449,101750.0,101740.0,0.02159093]
[1738357309525,0.27199007,101750.0,101740.0,0.02159093]
[1738357309730,1.24621449,101750.0,101740.0,0.02159093]
[1738357310288,1.24621449,101750.0,101740.0,0.004]
[1738357310509,1.24621449,101750.0,101740.0,0.02159093]
[1738357311683,1.24717519,101750.0,101740.0,0.02159093]
[1738357313179,0.97535519,101750.0,101740.0,0.16902493]
[1738357313392,1.12277519,101750.0,101740.0,0.16902493]
[1738357313599,1.12277519,101750.0,101740.0,0.02159093]
[1738357314519,1.12181449,101750.0,101740.0,0.02159093]
[1738357314730,0.00017007,101750.0,101740.0,0.57028894]
[1738357314935,0.00017007,101750.0,101740.0,0.51936809]
[1738357315569,0.00017007,101750.0,101740.0,0.51836809]
[1738357315773,0.00017007,101750.0,101740.0,0.51536809]
[1738357315970,0.00017007,101750.0,101740.0,0.52336809]
[1738357316530,0.00017007,101750.0,101740.0,0.67327845]
[1738357316742,0.00017007,101750.0,101740.0,0.46314046]
[1738357316931,0.15758964,101750.0,101740.0,0.40267716]
[1738357317158,0.15758964,101750.0,101740.0,0.158]
[1738357317364,1.13181406,101750.0,101740.0,0.158]
[1738357317756,0.15758964,101750.0,101740.0,0.158]
[1738357318019,1.13181406,101750.0,101740.0,0.158]
[1738357318236,0.15758964,101750.0,101740.0,0.32302493]
[1738357318419,0.15758964,101750.0,101740.0,0.32102493]
[1738357318558,0.15758964,101750.0,101740.0,0.17359093]
[1738357318796,0.15758964,101750.0,101740.0,0.157]
[1738357318996,0.15758964,101750.0,101740.0,0.14845241]
[1738357319408,0.01016964,101750.0,101740.0,0.31647734]
[1738357319827,0.00017007,101750.0,101740.0,0.31647734]
[1738357320055,0.00017007,101750.0,101740.0,0.4367205]
[1738357320447,0.00017007,101750.0,101740.0,0.4137205]
[1738357320448,0.15758964,101750.0,101740.0,0.4137205]
[1738357320778,0.00017007,101750.0,101740.0,0.4367205]
[1738357320987,0.00017007,101750.0,101740.0,0.5181205]
[1738357321826,1.32814399,101770.0,101760.0,0.01759093]
[1738357322039,1.32814399,101770.0,101760.0,0.11498472]
[1738357322463,1.13162099,101770.0,101760.0,0.26238972]
[1738357322680,0.15739057,101770.0,101760.0,0.11498472]
[1738357322893,0.15739057,101770.0,101760.0,0.01774156]
[1738357323113,0.16139057,101770.0,101760.0,0.00115063]
[1738357323321,0.151391,101770.0,101760.0,0.00115063]
[1738357323731,0.24863416,101770.0,101760.0,0.00015063]
[1738357324563,0.24463416,101770.0,101760.0,0.00015063]
[1738357324765,0.37103416,101770.0,101760.0,0.00015063]
[1738357324977,0.37403416,101770.0,101760.0,0.00015063]
[1738357325632,0.27370187,101770.0,101760.0,0.00015063]
[1738357325833,0.27770187,101770.0,101760.0,0.01774156]
[1738357326035,0.27770187,101770.0,101760.0,0.01874156]
[1738357326449,0.27370187,101770.0,101760.0,0.01874156]
[1738357326861,0.27370187,101770.0,101760.0,0.01774156]
[1738357327073,0.27370187,101770.0,101760.0,0.01874156]
[1738357328685,0.27770187,101770.0,101760.0,0.01874156]
[1738357328890,0.27770187,101770.0,101760.0,0.01774156]
[1738357329413,0.27866361,101770.0,101760.0,0.01874156]
[1738357331962,0.16226318,101770.0,101760.0,0.11598472]
[1738357332172,0.00496174,101770.0,101760.0,0.26338972]
[1738357332386,0.00996131,101770.0,101760.0,0.26338972]
[1738357332707,0.15735231,101770.0,101760.0,0.26338972]
[1738357333124,0.15735231,101770.0,101760.0,0.26238972]
[1738357333344,0.34415642,101780.0,101770.0,0.01759093]
[1738357333758,0.35411773,101780.0,101770.0,0.01759093]
[1738357333965,0.34415642,101780.0,101770.0,0.01759093]
[1738357334173,1.32834215,101780.0,101770.0,0.01759093]
[1738357335027,0.35411773,101780.0,101770.0,0.01759093]
[1738357335232,0.35811773,101780.0,101770.0,0.16498193]
[1738357335901,1.33234215,101780.0,101770.0,0.01759093]
[1738357336303,1.32238084,101780.0,101770.0,0.01759093]
[1738357336514,0.00996131,101770.0,101760.0,0.26238972]
[1738357337161,0.01421773,101780.0,101770.0,0.16498193]
[1738357337366,0.01421773,101780.0,101770.0,0.26222509]
[1738357337574,0.00025642,101780.0,101770.0,0.48982509]
[1738357337792,0.00025642,101780.0,101770.0,0.51282509]
[1738357338240,0.00025642,101780.0,101770.0,0.73840794]
[1738357338759,0.00125642,101780.0,101770.0,0.78720794]
[1738357339302,0.00025642,101780.0,101770.0,0.78720794]
[1738357339966,0.00025642,101810.0,101800.0,0.18793793]
[1738357340193,0.00025642,101810.0,101800.0,0.26218109]
[1738357340194,0.01021773,101810.0,101800.0,0.26218109]
[1738357341291,0.01021773,101810.0,101800.0,0.26268162]
[1738357341420,0.00025642,101810.0,101800.0,0.26268162]
[1738357341621,0.00025642,101810.0,101800.0,0.28568162]
[1738357342461,0.00025642,101810.0,101800.0,0.28668162]
[1738357343510,0.00025642,101810.0,101800.0,0.63164423]
[1738357344613,0.00025642,101810.0,101800.0,0.66080489]
[1738357345046,0.00025642,101810.0,101800.0,0.75854423]
[1738357345244,0.00025642,101810.0,101800.0,0.86307976]
[1738357345419,0.00025642,101810.0,101800.0,0.83718237]
[1738357345618,0.00025642,101810.0,101800.0,0.81202171]
[1738357345824,0.00025642,101810.0,101800.0,0.82102171]
[1738357347244,0.00025642,101810.0,101800.0,0.83050683]
[1738357347443,0.00025642,101810.0,101800.0,0.63554422]
[1738357347638,0.00025642,101810.0,101800.0,0.60506674]
[1738357348070,0.00025642,101810.0,101800.0,0.58506674]
[1738357348461,0.00025642,101810.0,101800.0,0.56747581]
[1738357348660,0.00025642,101810.0,101800.0,0.58506674]
[1738357351818,0.00025642,101810.0,101800.0,0.78002935]
[1738357352028,0.00025642,101810.0,101800.0,0.80002935]
[1738357352233,0.00025642,101810.0,101800.0,0.83040763]
[1738357352465,0.00025642,101820.0,101810.0,0.45862393]
[1738357352633,0.00025642,101820.0,101810.0,0.68557054]
[1738357353668,0.00025642,101830.0,101820.0,0.29461238]
[1738357353890,0.00025642,101830.0,101820.0,0.39185554]
[1738357354101,0.00025642,101830.0,101820.0,0.26215209]
[1738357354751,0.00025642,101830.0,101820.0,0.28515209]
[1738357355864,0.00025642,101830.0,101820.0,0.29115209]
[1738357356376,0.00025642,101830.0,101820.0,0.29315209]
[1738357356616,0.00025642,101830.0,101820.0,0.30303953]
[1738357358188,0.00025642,101830.0,101820.0,0.49761751]
[1738357358451,0.00025642,101830.0,101820.0,0.72301751]
[1738357358687,0.00025642,101830.0,101820.0,0.74301751]
[1738357358919,0.00025642,101830.0,101820.0,0.82245764]
[1738357359160,0.0002562,101840.0,101830.0,0.320304]
[1738357359394,0.0002562,101880.0,101860.0,0.51246891]
[1738357359601,0.0002562,101880.0,101870.0,0.28606136]
[1738357359807,0.0002562,101880.0,101870.0,0.28508009]
[1738357359988,0.0001219,101890.0,101880.0,0.31482293]
[1738357360191,0.01008321,101890.0,101880.0,0.41206609]
[1738357360392,0.15730021,101890.0,101880.0,0.39447516]
[1738357360591,1.13152463,101890.0,101880.0,0.39447516]
[1738357360810,0.01008321,101890.0,101880.0,0.26533462]
[1738357361020,0.01008321,101890.0,101880.0,0.41256662]
[1738357361158,0.01008321,101890.0,101880.0,0.41456662]
[1738357361355,0.01008321,101890.0,101880.0,0.39697569]
[1738357361989,0.15730021,101890.0,101880.0,0.39697569]
[1738357362419,0.15730021,101890.0,101880.0,0.39497569]
[1738357362787,1.13152463,101890.0,101880.0,0.39497569]
[1738357363200,0.15730021,101890.0,101880.0,0.39497569]
[1738357364045,1.13152463,101890.0,101880.0,0.24497569]
[1738357364255,1.13152463,101890.0,101880.0,0.11533462]
[1738357364451,1.13152463,101890.0,101880.0,0.26256662]
[1738357364676,1.13152463,101890.0,101880.0,0.11533462]
[1738357364900,1.12156332,101890.0,101880.0,0.00050053]
[1738357365105,1.12156332,101890.0,101880.0,0.00350053]
[1738357365537,1.25186332,101890.0,101880.0,0.00350053]
[1738357365751,1.25186332,101890.0,101880.0,0.00285214]
[1738357366446,0.147232,101880.0,101870.0,0.01759093]
[1738357366654,0.147232,101880.0,101870.0,0.01809127]
[1738357366926,0.147232,101880.0,101870.0,0.00050034]
[1738357367128,0.147232,101880.0,101870.0,0.01809127]
[1738357368174,0.097232,101880.0,101870.0,0.01809127]
[1738357368344,0.147232,101880.0,101870.0,0.01809127]
[1738357368550,0.147232,101880.0,101870.0,0.02109127]
[1738357368908,0.147232,101880.0,101870.0,0.01809127]
[1738357369093,0.15719331,101880.0,101870.0,0.11533443]
[1738357369614,0.15719331,101880.0,101870.0,0.26258043]
[1738357370015,0.00996131,101880.0,101870.0,0.26258043]
[1738357370232,0.15719331,101880.0,101870.0,0.26258043]
[1738357371769,0.15719331,101880.0,101870.0,0.26358043]
[1738357371971,0.15719331,101880.0,101870.0,0.26658043]
[1738357372219,0.00996131,101880.0,101870.0,0.26658043]
[1738357373898,0.15719331,101880.0,101870.0,0.26658043]
[1738357374102,0.15714237,101880.0,101870.0,0.26658043]
[1738357374513,0.15714237,101880.0,101870.0,0.26638043]
[1738357375408,0.15714237,101880.0,101870.0,0.27613458]
[1738357375613,0.00991037,101880.0,101870.0,0.27613458]
[1738357376063,0.15714237,101880.0,101870.0,0.27613458]
[1738357377234,0.147232,101880.0,101870.0,0.02189127]
[1738357377863,0.222432,101880.0,101870.0,0.00430034]
[1738357378657,0.222432,101880.0,101870.0,0.00330034]
[1738357379133,0.222432,101880.0,101870.0,0.00030034]
[1738357379494,0.222432,101880.0,101870.0,0.00130034]
[1738357381825,0.51917516,101880.0,101870.0,0.00155612]
[1738357382004,0.52917516,101880.0,101870.0,0.00155612]
[1738357382312,0.53872618,101880.0,101870.0,0.00155612]
[1738357382677,0.53872618,101880.0,101870.0,0.00055612]
[1738357383078,0.53872618,101880.0,101870.0,0.00155612]
[1738357383650,0.54580618,101880.0,101870.0,0.00155612]
[1738357383853,0.54880618,101880.0,101870.0,0.00155612]
[1738357384214,0.229246,101870.0,101860.0,0.299607]
[1738357384371,1.20347042,101870.0,101860.0,0.30010719]
[1738357385778,1.20347042,101870.0,101860.0,0.30110719]
[1738357387645,1.20647042,101870.0,101860.0,0.30010719]
[1738357387880,1.22596676,101870.0,101860.0,0.30110719]
[1738357388120,1.22296676,101870.0,101860.0,0.30110719]
[1738357388352,1.32020992,101870.0,101860.0,0.30110719]
[1738357388551,1.32420992,101870.0,101860.0,0.30110719]
[1738357388959,1.30471358,101870.0,101860.0,0.30110719]
[1738357393426,1.20747042,101870.0,101860.0,0.30136297]
[1738357393850,1.12547042,101870.0,101860.0,0.30136297]
[1738357394081,0.01391037,101870.0,101860.0,0.56345706]
[1738357396822,0.004,101870.0,101860.0,0.73645706]
[1738357397021,0.004,101870.0,101860.0,0.94359466]
[1738357397233,0.0001218,101880.0,101870.0,0.16483693]
[1738357397427,0.01003217,101880.0,101870.0,0.26306159]
[1738357397607,0.01003217,101880.0,101870.0,0.26208009]
[1738357397801,0.0001218,101880.0,101870.0,0.43508009]
[1738357398187,0.0001218,101880.0,101870.0,0.64521769]
[1738357398400,0.0001218,101880.0,101870.0,0.67577968]
[1738357398617,0.0001218,101880.0,101870.0,0.68177968]
[1738357399257,0.0001218,101880.0,101870.0,0.68377968]
[1738357399464,0.0001218,101880.0,101870.0,0.55414208]
[1738357399645,0.01003217,101880.0,101870.0,0.43305115]
[1738357399882,0.01003217,101880.0,101870.0,0.42008009]
[1738357400311,0.01003217,101880.0,101870.0,0.40248916]
[1738357400521,1.12157822,101880.0,101870.0,0.008]
[1738357400730,1.12157822,101880.0,101870.0,0.02559093]
[1738357401365,1.12157822,101880.0,101870.0,0.01959093]
[1738357401780,1.12157822,101880.0,101870.0,0.005]
[1738357402201,1.12157822,101880.0,101870.0,0.02259093]
[1738357402698,1.12157822,101880.0,101870.0,0.02059093]
[1738357402962,1.12157822,101880.0,101870.0,0.02159093]
[1738357403212,1.12157822,101880.0,101870.0,0.004]
[1738357403630,1.19717822,101880.0,101870.0,0.004]
[1738357405208,1.29442138,101880.0,101870.0,0.004]
[1738357407142,1.34302138,101880.0,101870.0,0.004]
[1738357412856,1.34302138,101880.0,101870.0,0.003]
[1738357413100,1.34702138,101880.0,101870.0,0.004]
[1738357413307,1.34702138,101880.0,101870.0,0.001]
[1738357413714,1.34702138,101880.0,101870.0,0.002]
[1738357420719,1.35702138,101880.0,101870.0,0.002]
[1738357420919,1.50702138,101880.0,101870.0,0.002]
[1738357421160,1.53002138,101880.0,101870.0,0.002]
[1738357421305,1.62737814,101880.0,101870.0,0.002]
[1738357421940,1.61737814,101880.0,101870.0,0.002]
[1738357422142,1.61978721,101880.0,101870.0,0.002]
[1738357422752,0.456546,101870.0,101860.0,2.27056297]
[1738357423025,0.65114592,101870.0,101860.0,2.27056297]
[1738357423376,0.64114592,101870.0,101860.0,2.27056297]
[1738357423572,0.64355499,101870.0,101860.0,2.17238797]
[1738357425022,0.65155499,101870.0,101860.0,2.17338797]
[1738357425216,0.65155499,101870.0,101860.0,2.17438797]
[1738357425428,0.66055499,101870.0,101860.0,2.15475297]
[1738357425657,0.66055499,101870.0,101860.0,2.13511797]
[1738357427154,0.66055499,101870.0,101860.0,2.07621297]
[1738357427371,0.66055499,101870.0,101860.0,2.03694297]
[1738357428212,0.64355499,101870.0,101860.0,2.03494297]